[Event "Titled Tuesday Blitz December 13 Early 2022"]
[White "Czopor, Maciej"]
[Black "Avazkhonov, Alikhon"]
[WhiteFideId "21805431"]
[BlackFideId "14208504"]
[WhiteElo "2324"]
[BlackElo "1739"]
[Result "1-0"]
[Round "05"]
[TimeControl "180+1"]
[Date "2022.12.14"]
[WhiteClock "0:01:04"]
[BlackClock "0:00:15"]

1. c4 {[%clk 0:03:00]}  e5 {[%clk 0:02:59]} 2. Nc3 {[%clk 0:03:01]}  d6 {[%clk 0:02:58]} 3. e3 {[%clk 0:03:02]}  f5 {[%clk 0:02:58]} 4. d4 {[%clk 0:03:02]}  Nf6 {[%clk 0:02:59]} 5. b4 {[%clk 0:03:02]}  Be7 {[%clk 0:02:57]} 6. Bb2 {[%clk 0:03:02]}  O-O {[%clk 0:02:57]} 7. Nf3 {[%clk 0:03:02]}  e4 {[%clk 0:02:52]} 8. Nd2 {[%clk 0:03:02]}  c5 {[%clk 0:02:52]} 9. bxc5 {[%clk 0:02:58]}  dxc5 {[%clk 0:02:53]} 10. Nb3 {[%clk 0:02:54]}  cxd4 {[%clk 0:02:45]} 11. exd4 {[%clk 0:02:50]}  Nc6 {[%clk 0:02:45]} 12. Be2 {[%clk 0:02:46]}  a5 {[%clk 0:02:11]} 13. a4 {[%clk 0:02:36]}  f4 {[%clk 0:02:05]} 14. f3 {[%clk 0:02:35]}  Bb4 {[%clk 0:01:12]} 15. O-O {[%clk 0:02:32]}  Bf5 {[%clk 0:01:10]} 16. Nb5 {[%clk 0:02:00]}  exf3 {[%clk 0:00:47]} 17. Bxf3 {[%clk 0:01:53]}  Re8 {[%clk 0:00:47]} 18. Kh1 {[%clk 0:01:35]}  Re3 {[%clk 0:00:29]} 19. Nc5 {[%clk 0:01:23]}  Bxc5 {[%clk 0:00:23]} 20. dxc5 {[%clk 0:01:24]}  Ne4 {[%clk 0:00:24]} 21. Nd6 {[%clk 0:01:17]}  Nxd6 {[%clk 0:00:20]} 22. Qxd6 {[%clk 0:01:14]}  Bd3 {[%clk 0:00:19]} 23. Bd5+ {[%clk 0:01:08]}  Kh8 {[%clk 0:00:18]} 24. Rxf4 {[%clk 0:01:08]}  Qe8 {[%clk 0:00:15]} 25. Bxg7+ {[%clk 0:01:04]} 1-0


[Site "https://www.chess.com"]

[Event "Titled Tuesday Blitz December 13 Early 2022"]
[White "De Souza, Cristiano Gomes"]
[Black "Tarasova, Viktoriya"]
[WhiteFideId "2151758"]
[BlackFideId "4175840"]
[WhiteElo "2068"]
[BlackElo "2182"]
[Result "0-1"]
[Round "05"]
[TimeControl "180+1"]
[Date "2022.12.14"]
[WhiteClock "0:00:19"]
[BlackClock "0:00:13"]

1. d4 {[%clk 0:03:00]}  Nf6 {[%clk 0:02:59]} 2. c4 {[%clk 0:02:59]}  e6 {[%clk 0:03:00]} 3. Nf3 {[%clk 0:02:58]}  b6 {[%clk 0:02:59]} 4. g3 {[%clk 0:02:57]}  Ba6 {[%clk 0:02:59]} 5. b3 {[%clk 0:02:57]}  d5 {[%clk 0:02:59]} 6. Bg2 {[%clk 0:02:56]}  Bb4+ {[%clk 0:02:56]} 7. Bd2 {[%clk 0:02:55]}  Bd6 {[%clk 0:02:56]} 8. Bc3 {[%clk 0:02:55]}  O-O {[%clk 0:02:56]} 9. Nbd2 {[%clk 0:02:53]}  c5 {[%clk 0:02:55]} 10. O-O {[%clk 0:02:45]}  Nc6 {[%clk 0:02:55]} 11. cxd5 {[%clk 0:02:43]}  exd5 {[%clk 0:02:49]} 12. Rc1 {[%clk 0:02:41]}  Rc8 {[%clk 0:02:48]} 13. Ba1 {[%clk 0:02:39]}  Re8 {[%clk 0:02:46]} 14. Re1 {[%clk 0:02:38]}  Rc7 {[%clk 0:02:28]} 15. Qc2 {[%clk 0:02:25]}  cxd4 {[%clk 0:02:19]} 16. Qb2 {[%clk 0:02:21]}  Rxe2 {[%clk 0:02:12]} 17. Rxe2 {[%clk 0:02:15]}  Bxe2 {[%clk 0:02:12]} 18. Nxd4 {[%clk 0:02:00]}  Nxd4 {[%clk 0:02:07]} 19. Rxc7 {[%clk 0:01:59]}  Qxc7 {[%clk 0:02:01]} 20. Qxd4 {[%clk 0:01:58]}  Qc1+ {[%clk 0:01:59]} 21. Bf1 {[%clk 0:01:56]}  Bc5 {[%clk 0:01:24]} 22. Qe5 {[%clk 0:01:34]}  Bxf2+ {[%clk 0:00:19]} 23. Kg2 {[%clk 0:01:32]}  Bxf1+ {[%clk 0:00:19]} 24. Nxf1 {[%clk 0:01:31]}  Qc8 {[%clk 0:00:13]} 25. Qg5 {[%clk 0:01:23]}  d4 {[%clk 0:00:10]} 26. Qf4 {[%clk 0:01:04]}  Be3 {[%clk 0:00:10]} 27. Nxe3 {[%clk 0:01:01]}  dxe3 {[%clk 0:00:11]} 28. Bxf6 {[%clk 0:00:51]}  Qc2+ {[%clk 0:00:10]} 29. Kh3 {[%clk 0:00:50]}  gxf6 {[%clk 0:00:09]} 30. Qxe3 {[%clk 0:00:45]}  Qxa2 {[%clk 0:00:09]} 31. Qh6 {[%clk 0:00:17]}  Qxb3 {[%clk 0:00:08]} 32. Qxf6 {[%clk 0:00:17]}  Qe6+ {[%clk 0:00:08]} 33. Qxe6 {[%clk 0:00:17]}  fxe6 {[%clk 0:00:09]} 34. Kg2 {[%clk 0:00:18]}  Kf7 {[%clk 0:00:09]} 35. Kf2 {[%clk 0:00:18]}  Kf6 {[%clk 0:00:10]} 36. Ke2 {[%clk 0:00:19]}  Kf5 {[%clk 0:00:10]} 37. Kd3 {[%clk 0:00:19]}  Kg4 {[%clk 0:00:11]} 38. Kd4 {[%clk 0:00:18]}  Kh3 {[%clk 0:00:11]} 39. Ke5 {[%clk 0:00:18]}  Kxh2 {[%clk 0:00:12]} 40. g4 {[%clk 0:00:18]}  Kh3 {[%clk 0:00:12]} 41. g5 {[%clk 0:00:19]}  Kh4 {[%clk 0:00:13]} 42. Kf6 {[%clk 0:00:19]}  a5 {[%clk 0:00:13]} 0-1


[Site "https://www.chess.com"]

[Event "Titled Tuesday Blitz December 13 Early 2022"]
[White "Deuer, Marius"]
[Black "Migot, Tangi"]
[WhiteFideId "16236432"]
[BlackFideId "662445"]
[WhiteElo "2226"]
[BlackElo "2585"]
[Result "1-0"]
[Round "05"]
[TimeControl "180+1"]
[Date "2022.12.14"]
[WhiteClock "0:00:36"]
[BlackClock "0:00:31"]

1. c4 {[%clk 0:03:00]}  b6 {[%clk 0:02:59]} 2. d4 {[%clk 0:02:46]}  Bb7 {[%clk 0:03:00]} 3. Nc3 {[%clk 0:02:46]}  Nf6 {[%clk 0:02:59]} 4. Nf3 {[%clk 0:02:43]}  e6 {[%clk 0:02:59]} 5. g3 {[%clk 0:02:43]}  c5 {[%clk 0:02:57]} 6. d5 {[%clk 0:02:41]}  exd5 {[%clk 0:02:52]} 7. cxd5 {[%clk 0:02:42]}  d6 {[%clk 0:02:51]} 8. Bg2 {[%clk 0:02:41]}  g6 {[%clk 0:02:50]} 9. O-O {[%clk 0:02:42]}  Bg7 {[%clk 0:02:51]} 10. e4 {[%clk 0:02:39]}  O-O {[%clk 0:02:51]} 11. Re1 {[%clk 0:02:39]}  Nbd7 {[%clk 0:02:50]} 12. Bf4 {[%clk 0:02:37]}  Ne8 {[%clk 0:02:34]} 13. Nb5 {[%clk 0:02:31]}  Ne5 {[%clk 0:02:23]} 14. Bxe5 {[%clk 0:02:26]}  dxe5 {[%clk 0:02:23]} 15. a4 {[%clk 0:02:23]}  a6 {[%clk 0:02:22]} 16. Nc3 {[%clk 0:02:23]}  Nd6 {[%clk 0:02:22]} 17. Nd2 {[%clk 0:02:23]}  b5 {[%clk 0:02:19]} 18. axb5 {[%clk 0:02:22]}  axb5 {[%clk 0:02:20]} 19. Qb3 {[%clk 0:02:22]}  Qd7 {[%clk 0:02:15]} 20. Bf1 {[%clk 0:02:17]}  c4 {[%clk 0:01:58]} 21. Qb4 {[%clk 0:01:46]}  f5 {[%clk 0:01:58]} 22. Bg2 {[%clk 0:01:37]}  Bh6 {[%clk 0:01:37]} 23. Rxa8 {[%clk 0:01:13]}  Bxa8 {[%clk 0:01:31]} 24. Nf3 {[%clk 0:01:12]}  Nxe4 {[%clk 0:01:09]} 25. Nxe5 {[%clk 0:00:40]}  Qa7 {[%clk 0:01:01]} 26. Nxe4 {[%clk 0:00:37]}  fxe4 {[%clk 0:01:01]} 27. Ng4 {[%clk 0:00:37]}  Bg7 {[%clk 0:00:55]} 28. Bxe4 {[%clk 0:00:37]}  Bd4 {[%clk 0:00:50]} 29. Kg2 {[%clk 0:00:37]}  Qf7 {[%clk 0:00:38]} 30. f3 {[%clk 0:00:36]}  Bxd5 {[%clk 0:00:31]} 31. Nh6+ {[%clk 0:00:36]} 1-0


[Site "https://www.chess.com"]

[Event "Titled Tuesday Blitz December 13 Early 2022"]
[White "Djokic, Mihailo"]
[Black "Rakhmanov, Aleksandr"]
[WhiteFideId "976440"]
[BlackFideId "4173708"]
[WhiteElo "2572"]
[BlackElo "2769"]
[Result "0-1"]
[Round "05"]
[TimeControl "180+1"]
[Date "2022.12.14"]
[WhiteClock "0:01:46"]
[BlackClock "0:01:58"]

1. e4 {[%clk 0:03:00]}  c5 {[%clk 0:02:43]} 2. Nf3 {[%clk 0:03:00]}  Nf6 {[%clk 0:02:43]} 3. e5 {[%clk 0:03:00]}  Nd5 {[%clk 0:02:43]} 4. Nc3 {[%clk 0:03:00]}  Nxc3 {[%clk 0:02:44]} 5. bxc3 {[%clk 0:02:59]}  Nc6 {[%clk 0:02:45]} 6. d4 {[%clk 0:02:59]}  d5 {[%clk 0:02:45]} 7. exd6 {[%clk 0:02:55]}  Qxd6 {[%clk 0:02:45]} 8. Be3 {[%clk 0:02:53]}  cxd4 {[%clk 0:02:43]} 9. cxd4 {[%clk 0:02:53]}  Bg4 {[%clk 0:02:38]} 10. Be2 {[%clk 0:02:51]}  e6 {[%clk 0:02:36]} 11. O-O {[%clk 0:02:50]}  Be7 {[%clk 0:02:36]} 12. c3 {[%clk 0:02:50]}  O-O {[%clk 0:02:36]} 13. h3 {[%clk 0:02:50]}  Bh5 {[%clk 0:02:36]} 14. Nd2 {[%clk 0:02:51]}  Bxe2 {[%clk 0:02:34]} 15. Qxe2 {[%clk 0:02:51]}  Rac8 {[%clk 0:02:34]} 16. Rfc1 {[%clk 0:02:45]}  Rfd8 {[%clk 0:02:34]} 17. Rab1 {[%clk 0:02:43]}  b6 {[%clk 0:02:33]} 18. Qa6 {[%clk 0:02:41]}  Qd7 {[%clk 0:02:30]} 19. Rb5 {[%clk 0:02:36]}  Nb8 {[%clk 0:02:24]} 20. Qa4 {[%clk 0:02:07]}  a6 {[%clk 0:02:24]} 21. Rb4 {[%clk 0:02:07]}  Qxa4 {[%clk 0:02:07]} 22. Rxa4 {[%clk 0:02:07]}  b5 {[%clk 0:02:07]} 23. Ra5 {[%clk 0:02:06]}  Bb4 {[%clk 0:02:08]} 24. cxb4 {[%clk 0:01:52]}  Rxc1+ {[%clk 0:02:09]} 25. Kh2 {[%clk 0:01:52]}  Nc6 {[%clk 0:01:59]} 26. Rxa6 {[%clk 0:01:52]}  Nxb4 {[%clk 0:02:00]} 27. Ne4 {[%clk 0:01:47]}  Nxa6 {[%clk 0:01:59]} 28. Bxc1 {[%clk 0:01:45]}  Rxd4 {[%clk 0:01:58]} 29. Nc5 {[%clk 0:01:46]}  Nxc5 {[%clk 0:01:58]} 0-1


[Site "https://www.chess.com"]

[Event "Titled Tuesday Blitz December 13 Early 2022"]
[White "Dong, Bao Nghia"]
[Black "Alexakis, Dimitris"]
[WhiteFideId "12400343"]
[BlackFideId "4277023"]
[WhiteElo "2623"]
[BlackElo "2814"]
[Result "0-1"]
[Round "05"]
[TimeControl "180+1"]
[Date "2022.12.14"]
[WhiteClock "0:00:31"]
[BlackClock "0:00:12"]

1. d4 {[%clk 0:03:00]}  Nf6 {[%clk 0:02:59]} 2. c4 {[%clk 0:03:00]}  e6 {[%clk 0:02:58]} 3. Nc3 {[%clk 0:03:01]}  Bb4 {[%clk 0:02:58]} 4. Qb3 {[%clk 0:03:01]}  a5 {[%clk 0:02:54]} 5. e3 {[%clk 0:03:01]}  b6 {[%clk 0:02:53]} 6. Nf3 {[%clk 0:02:59]}  Bb7 {[%clk 0:02:53]} 7. Be2 {[%clk 0:02:59]}  d6 {[%clk 0:02:51]} 8. O-O {[%clk 0:02:59]}  Bxc3 {[%clk 0:02:51]} 9. Qxc3 {[%clk 0:02:59]}  Nbd7 {[%clk 0:02:52]} 10. b3 {[%clk 0:02:59]}  Ne4 {[%clk 0:02:51]} 11. Qc2 {[%clk 0:03:00]}  f5 {[%clk 0:02:52]} 12. Bb2 {[%clk 0:02:59]}  O-O {[%clk 0:02:52]} 13. Ne1 {[%clk 0:03:00]}  Qg5 {[%clk 0:02:49]} 14. f4 {[%clk 0:02:58]}  Qh6 {[%clk 0:02:45]} 15. Bf3 {[%clk 0:02:56]}  Ndf6 {[%clk 0:02:41]} 16. g3 {[%clk 0:02:39]}  g5 {[%clk 0:02:38]} 17. Nd3 {[%clk 0:02:37]}  Ng4 {[%clk 0:02:35]} 18. Rae1 {[%clk 0:02:30]}  Rae8 {[%clk 0:02:07]} 19. c5 {[%clk 0:02:27]}  Ba6 {[%clk 0:01:59]} 20. Re2 {[%clk 0:02:19]}  gxf4 {[%clk 0:01:54]} 21. exf4 {[%clk 0:02:17]}  d5 {[%clk 0:01:46]} 22. Rd1 {[%clk 0:02:05]}  Rf7 {[%clk 0:01:37]} 23. cxb6 {[%clk 0:02:01]}  cxb6 {[%clk 0:01:35]} 24. Qc6 {[%clk 0:02:01]}  Rc8 {[%clk 0:01:12]} 25. Qxb6 {[%clk 0:02:00]}  Bxd3 {[%clk 0:01:05]} 26. Rxd3 {[%clk 0:02:01]}  Nef2 {[%clk 0:01:01]} 27. Bxg4 {[%clk 0:01:40]}  Nxd3 {[%clk 0:00:48]} 28. Rxe6 {[%clk 0:01:20]}  Qg7 {[%clk 0:00:30]} 29. Bf3 {[%clk 0:01:15]}  Nxb2 {[%clk 0:00:24]} 30. Bxd5 {[%clk 0:01:15]}  Kh8 {[%clk 0:00:23]} 31. Re2 {[%clk 0:01:08]}  Rf6 {[%clk 0:00:20]} 32. Qb5 {[%clk 0:01:01]}  Rff8 {[%clk 0:00:17]} 33. Qb6 {[%clk 0:00:55]}  Nd3 {[%clk 0:00:16]} 34. Bc4 {[%clk 0:00:54]}  Nxf4 {[%clk 0:00:16]} 35. Re5 {[%clk 0:00:51]}  Ng6 {[%clk 0:00:14]} 36. Rxa5 {[%clk 0:00:48]}  Rcd8 {[%clk 0:00:14]} 37. Ra7 {[%clk 0:00:44]}  Qxd4+ {[%clk 0:00:14]} 38. Qxd4+ {[%clk 0:00:44]}  Rxd4 {[%clk 0:00:15]} 39. a4 {[%clk 0:00:44]}  Re8 {[%clk 0:00:15]} 40. Kf2 {[%clk 0:00:44]}  Rd2+ {[%clk 0:00:14]} 41. Kf1 {[%clk 0:00:45]}  Re3 {[%clk 0:00:14]} 42. h4 {[%clk 0:00:43]}  Rc3 {[%clk 0:00:14]} 43. Ke1 {[%clk 0:00:41]}  Rh2 {[%clk 0:00:15]} 44. Kd1 {[%clk 0:00:39]}  Rxg3 {[%clk 0:00:15]} 45. Re7 {[%clk 0:00:39]}  Rg1+ {[%clk 0:00:13]} 46. Re1 {[%clk 0:00:39]}  Rgg2 {[%clk 0:00:13]} 47. Be2 {[%clk 0:00:37]}  Nf4 {[%clk 0:00:13]} 48. Bf3 {[%clk 0:00:36]}  Ra2 {[%clk 0:00:14]} 49. Re8+ {[%clk 0:00:32]}  Kg7 {[%clk 0:00:13]} 50. Rc8 {[%clk 0:00:33]}  Rhd2+ {[%clk 0:00:11]} 51. Kc1 {[%clk 0:00:32]}  Nd3+ {[%clk 0:00:11]} 52. Kb1 {[%clk 0:00:31]}  Rdb2# {[%clk 0:00:12]} 0-1


[Site "https://www.chess.com"]

[Event "Titled Tuesday Blitz December 13 Early 2022"]
[White "Estrada Nieto, Julian"]
[Black "Forgacs, Attila Jr."]
[WhiteFideId "5101018"]
[BlackFideId "773654"]
[WhiteElo "2195"]
[BlackElo "2168"]
[Result "0-1"]
[Round "05"]
[TimeControl "180+1"]
[Date "2022.12.14"]
[WhiteClock "0:00:04"]
[BlackClock "0:00:41"]

1. e4 {[%clk 0:03:00]}  e5 {[%clk 0:02:58]} 2. Nf3 {[%clk 0:03:00]}  Nc6 {[%clk 0:02:58]} 3. Bb5 {[%clk 0:03:00]}  a6 {[%clk 0:02:59]} 4. Ba4 {[%clk 0:03:00]}  Nf6 {[%clk 0:03:00]} 5. O-O {[%clk 0:03:01]}  Be7 {[%clk 0:03:00]} 6. Re1 {[%clk 0:02:59]}  b5 {[%clk 0:03:01]} 7. Bb3 {[%clk 0:02:59]}  O-O {[%clk 0:03:02]} 8. a4 {[%clk 0:03:00]}  b4 {[%clk 0:03:02]} 9. d4 {[%clk 0:02:47]}  d6 {[%clk 0:03:00]} 10. dxe5 {[%clk 0:02:46]}  Nxe5 {[%clk 0:02:58]} 11. Nbd2 {[%clk 0:02:46]}  Bb7 {[%clk 0:02:52]} 12. Qe2 {[%clk 0:02:41]}  a5 {[%clk 0:02:51]} 13. Nxe5 {[%clk 0:02:20]}  dxe5 {[%clk 0:02:51]} 14. Nc4 {[%clk 0:02:20]}  Bxe4 {[%clk 0:02:30]} 15. Nxe5 {[%clk 0:02:18]}  Bd6 {[%clk 0:02:30]} 16. Ng4 {[%clk 0:02:02]}  Nxg4 {[%clk 0:02:24]} 17. Qxg4 {[%clk 0:02:02]}  Bg6 {[%clk 0:02:21]} 18. Bg5 {[%clk 0:01:43]}  Qc8 {[%clk 0:02:03]} 19. Qxc8 {[%clk 0:01:36]}  Raxc8 {[%clk 0:02:02]} 20. Rad1 {[%clk 0:01:19]}  Rfe8 {[%clk 0:02:01]} 21. Kf1 {[%clk 0:01:03]}  Kf8 {[%clk 0:01:41]} 22. h3 {[%clk 0:00:54]}  f6 {[%clk 0:01:38]} 23. Be3 {[%clk 0:00:54]}  Be5 {[%clk 0:01:36]} 24. Bd4 {[%clk 0:00:48]}  Bxd4 {[%clk 0:01:30]} 25. Rxe8+ {[%clk 0:00:40]}  Bxe8 {[%clk 0:01:25]} 26. Rxd4 {[%clk 0:00:41]}  c5 {[%clk 0:01:25]} 27. Rh4 {[%clk 0:00:32]}  h6 {[%clk 0:01:19]} 28. Be6 {[%clk 0:00:22]}  Rc6 {[%clk 0:01:06]} 29. Re4 {[%clk 0:00:08]}  Rd6 {[%clk 0:01:06]} 30. Ke1 {[%clk 0:00:06]}  Bxa4 {[%clk 0:01:05]} 31. b3 {[%clk 0:00:07]}  Bc6 {[%clk 0:01:03]} 32. Re3 {[%clk 0:00:05]}  Bxg2 {[%clk 0:00:56]} 33. f4 {[%clk 0:00:05]}  Bd5 {[%clk 0:00:49]} 34. f5 {[%clk 0:00:04]}  Bxe6 {[%clk 0:00:49]} 35. fxe6 {[%clk 0:00:05]}  Ke7 {[%clk 0:00:49]} 36. Rg3 {[%clk 0:00:05]}  Rxe6+ {[%clk 0:00:50]} 37. Kd1 {[%clk 0:00:05]}  Kf7 {[%clk 0:00:50]} 38. Kd2 {[%clk 0:00:05]}  Rd6+ {[%clk 0:00:50]} 39. Ke3 {[%clk 0:00:05]}  g5 {[%clk 0:00:49]} 40. Rg1 {[%clk 0:00:05]}  Kg6 {[%clk 0:00:49]} 41. Ke4 {[%clk 0:00:04]}  Rd4+ {[%clk 0:00:46]} 42. Ke3 {[%clk 0:00:04]}  Rh4 {[%clk 0:00:41]} 43. Rg3 {[%clk 0:00:04]}  f5 {[%clk 0:00:41]} 44. Kd3 {[%clk 0:00:04]}  Rd4+ {[%clk 0:00:41]} 45. Ke3 {[%clk 0:00:04]}  f4+ {[%clk 0:00:41]} 0-1


[Site "https://www.chess.com"]

[Event "Titled Tuesday Blitz December 13 Early 2022"]
[White "Ghosh, Chanchal Kumer"]
[Black "Bogaudinov, Rushan"]
[WhiteFideId "10201858"]
[BlackFideId "4129288"]
[WhiteElo "2058"]
[BlackElo "2028"]
[Result "1-0"]
[Round "05"]
[TimeControl "180+1"]
[Date "2022.12.14"]
[WhiteClock "0:00:05"]
[BlackClock "0:00:01"]

1. e4 {[%clk 0:03:00]}  e5 {[%clk 0:02:23]} 2. Nf3 {[%clk 0:02:59]}  Nf6 {[%clk 0:02:18]} 3. Nxe5 {[%clk 0:02:58]}  d6 {[%clk 0:02:18]} 4. Nf3 {[%clk 0:02:57]}  Nxe4 {[%clk 0:02:18]} 5. Qe2 {[%clk 0:02:57]}  Qe7 {[%clk 0:02:17]} 6. d3 {[%clk 0:02:57]}  Nf6 {[%clk 0:02:17]} 7. Be3 {[%clk 0:02:57]}  Nc6 {[%clk 0:02:15]} 8. Nc3 {[%clk 0:02:57]}  Bg4 {[%clk 0:02:14]} 9. h3 {[%clk 0:02:57]}  Bh5 {[%clk 0:02:14]} 10. g4 {[%clk 0:02:57]}  Bg6 {[%clk 0:02:14]} 11. g5 {[%clk 0:02:56]}  Nd7 {[%clk 0:02:07]} 12. Nd5 {[%clk 0:02:55]}  Qd8 {[%clk 0:02:08]} 13. Nxc7+ {[%clk 0:02:50]}  Qxc7 {[%clk 0:02:02]} 14. Bb6+ {[%clk 0:02:49]}  Kd8 {[%clk 0:02:03]} 15. Bxc7+ {[%clk 0:02:49]}  Kxc7 {[%clk 0:02:04]} 16. O-O-O {[%clk 0:02:44]}  Be7 {[%clk 0:02:00]} 17. Bg2 {[%clk 0:02:40]}  Rhe8 {[%clk 0:01:59]} 18. Qd2 {[%clk 0:02:36]}  Nc5 {[%clk 0:01:51]} 19. Rde1 {[%clk 0:02:29]}  a5 {[%clk 0:01:49]} 20. h4 {[%clk 0:02:21]}  a4 {[%clk 0:01:41]} 21. a3 {[%clk 0:02:21]}  Ra6 {[%clk 0:01:33]} 22. Qc3 {[%clk 0:02:10]}  f6 {[%clk 0:01:22]} 23. Re3 {[%clk 0:01:17]}  Rf8 {[%clk 0:01:14]} 24. Rhe1 {[%clk 0:01:13]}  Bd8 {[%clk 0:01:14]} 25. d4 {[%clk 0:01:10]}  Nd7 {[%clk 0:01:00]} 26. d5 {[%clk 0:01:09]}  fxg5 {[%clk 0:00:59]} 27. Nd4 {[%clk 0:00:55]}  Bf6 {[%clk 0:00:48]} 28. dxc6 {[%clk 0:00:53]}  bxc6 {[%clk 0:00:45]} 29. Kb1 {[%clk 0:00:45]}  Nc5 {[%clk 0:00:31]} 30. hxg5 {[%clk 0:00:39]}  Bxg5 {[%clk 0:00:30]} 31. Re7+ {[%clk 0:00:29]}  Kd8 {[%clk 0:00:18]} 32. Nxc6+ {[%clk 0:00:24]}  Rxc6 {[%clk 0:00:18]} 33. Bxc6 {[%clk 0:00:23]}  Bxe7 {[%clk 0:00:18]} 34. Qxg7 {[%clk 0:00:20]}  Rf7 {[%clk 0:00:13]} 35. Qc3 {[%clk 0:00:17]}  Bf6 {[%clk 0:00:12]} 36. Qa5+ {[%clk 0:00:17]}  Rc7 {[%clk 0:00:11]} 37. Bd5 {[%clk 0:00:14]}  Nb7 {[%clk 0:00:09]} 38. Qb6 {[%clk 0:00:14]}  Bxc2+ {[%clk 0:00:09]} 39. Ka1 {[%clk 0:00:14]}  Nc5 {[%clk 0:00:08]} 40. Bc6 {[%clk 0:00:13]}  Nb3+ {[%clk 0:00:08]} 41. Ka2 {[%clk 0:00:12]}  Be7 {[%clk 0:00:05]} 42. Rg1 {[%clk 0:00:11]}  Bg6 {[%clk 0:00:04]} 43. Rd1 {[%clk 0:00:10]}  Nc5 {[%clk 0:00:02]} 44. Qa5 {[%clk 0:00:05]}  Bf7+ {[%clk 0:00:01]} 45. Kb1 {[%clk 0:00:05]}  Bg6+ {[%clk 0:00:02]} 46. Ka2 {[%clk 0:00:05]}  Bf7+ {[%clk 0:00:02]} 47. Bd5 {[%clk 0:00:04]}  Bxd5+ {[%clk 0:00:01]} 48. Rxd5 {[%clk 0:00:05]} 1-0


[Site "https://www.chess.com"]

[Event "Titled Tuesday Blitz December 13 Early 2022"]
[White "Guliev, Logman"]
[Black "Mendez Fortes, Eduardo Jesus"]
[WhiteFideId "13400061"]
[BlackFideId "3502376"]
[WhiteElo "2161"]
[BlackElo "2307"]
[Result "1-0"]
[Round "05"]
[TimeControl "180+1"]
[Date "2022.12.14"]
[WhiteClock "0:00:18"]
[BlackClock "0:00:15"]

1. e4 {[%clk 0:03:00]}  e5 {[%clk 0:02:56]} 2. Nf3 {[%clk 0:02:56]}  Nc6 {[%clk 0:02:56]} 3. Bb5 {[%clk 0:02:53]}  Nf6 {[%clk 0:02:52]} 4. d3 {[%clk 0:02:51]}  Bc5 {[%clk 0:02:52]} 5. O-O {[%clk 0:02:49]}  d6 {[%clk 0:02:51]} 6. Nbd2 {[%clk 0:02:49]}  O-O {[%clk 0:02:51]} 7. Bxc6 {[%clk 0:02:45]}  bxc6 {[%clk 0:02:52]} 8. Nc4 {[%clk 0:02:44]}  Re8 {[%clk 0:02:50]} 9. Be3 {[%clk 0:02:43]}  Bb6 {[%clk 0:02:49]} 10. h3 {[%clk 0:02:36]}  c5 {[%clk 0:02:49]} 11. Bg5 {[%clk 0:02:33]}  h6 {[%clk 0:02:49]} 12. Bxf6 {[%clk 0:02:31]}  Qxf6 {[%clk 0:02:50]} 13. Nfd2 {[%clk 0:02:30]}  c6 {[%clk 0:02:50]} 14. Nxb6 {[%clk 0:02:23]}  axb6 {[%clk 0:02:50]} 15. Nc4 {[%clk 0:02:24]}  Rb8 {[%clk 0:02:44]} 16. a4 {[%clk 0:02:23]}  d5 {[%clk 0:02:43]} 17. Ne3 {[%clk 0:02:21]}  d4 {[%clk 0:02:41]} 18. Nc4 {[%clk 0:02:17]}  b5 {[%clk 0:02:41]} 19. Nd2 {[%clk 0:02:13]}  bxa4 {[%clk 0:02:41]} 20. Nc4 {[%clk 0:02:06]}  Qg5 {[%clk 0:02:34]} 21. Qf3 {[%clk 0:01:59]}  Be6 {[%clk 0:02:09]} 22. Rxa4 {[%clk 0:01:48]}  f5 {[%clk 0:02:02]} 23. exf5 {[%clk 0:01:18]}  Bd5 {[%clk 0:02:01]} 24. Qg4 {[%clk 0:01:16]}  Qf6 {[%clk 0:02:01]} 25. Re1 {[%clk 0:01:10]}  Re7 {[%clk 0:01:45]} 26. b3 {[%clk 0:01:09]}  Rf8 {[%clk 0:01:39]} 27. Ra5 {[%clk 0:01:04]}  Bxc4 {[%clk 0:01:28]} 28. bxc4 {[%clk 0:01:02]}  Qd6 {[%clk 0:01:26]} 29. Qe4 {[%clk 0:00:56]}  Ree8 {[%clk 0:01:07]} 30. Ra6 {[%clk 0:00:53]}  Rf6 {[%clk 0:01:07]} 31. f4 {[%clk 0:00:51]}  Qf8 {[%clk 0:01:02]} 32. fxe5 {[%clk 0:00:45]}  Rxf5 {[%clk 0:01:01]} 33. e6 {[%clk 0:00:45]}  Qf6 {[%clk 0:00:44]} 34. Rxc6 {[%clk 0:00:40]}  Rf2 {[%clk 0:00:36]} 35. e7 {[%clk 0:00:37]}  Qf7 {[%clk 0:00:26]} 36. Qd5 {[%clk 0:00:23]}  Rxc2 {[%clk 0:00:24]} 37. Rc7 {[%clk 0:00:17]}  Rd2 {[%clk 0:00:16]} 38. Rf1 {[%clk 0:00:16]}  Qxd5 {[%clk 0:00:14]} 39. cxd5 {[%clk 0:00:17]}  Rxd3 {[%clk 0:00:12]} 40. d6 {[%clk 0:00:17]}  Re3 {[%clk 0:00:13]} 41. d7 {[%clk 0:00:17]}  R3xe7 {[%clk 0:00:12]} 42. dxe8=Q+ {[%clk 0:00:17]}  Rxe8 {[%clk 0:00:13]} 43. Rff7 {[%clk 0:00:17]}  Rd8 {[%clk 0:00:14]} 44. Rxg7+ {[%clk 0:00:17]}  Kh8 {[%clk 0:00:15]} 45. Rh7+ {[%clk 0:00:18]}  Kg8 {[%clk 0:00:16]} 46. Rhd7 {[%clk 0:00:17]}  Ra8 {[%clk 0:00:14]} 47. Rxc5 {[%clk 0:00:17]}  Kf8 {[%clk 0:00:14]} 48. Rcc7 {[%clk 0:00:16]}  Ke8 {[%clk 0:00:13]} 49. Kh2 {[%clk 0:00:16]}  Ra2 {[%clk 0:00:12]} 50. Rh7 {[%clk 0:00:17]}  Kd8 {[%clk 0:00:11]} 51. Rcg7 {[%clk 0:00:16]}  Re2 {[%clk 0:00:11]} 52. Rd7+ {[%clk 0:00:16]}  Ke8 {[%clk 0:00:11]} 53. Rxd4 {[%clk 0:00:17]}  Kf8 {[%clk 0:00:11]} 54. Ra4 {[%clk 0:00:17]}  Kg8 {[%clk 0:00:12]} 55. Rc7 {[%clk 0:00:17]}  Re8 {[%clk 0:00:12]} 56. Raa7 {[%clk 0:00:17]}  Rb8 {[%clk 0:00:12]} 57. Rg7+ {[%clk 0:00:16]}  Kh8 {[%clk 0:00:13]} 58. Rh7+ {[%clk 0:00:17]}  Kg8 {[%clk 0:00:13]} 59. Rag7+ {[%clk 0:00:17]}  Kf8 {[%clk 0:00:14]} 60. Rh8+ {[%clk 0:00:18]}  Kxg7 {[%clk 0:00:15]} 61. Rxb8 {[%clk 0:00:18]} 1-0


[Site "https://www.chess.com"]